Cogmind - Beta 9.1 @@@ ROGUE MODE // 2019.11.08 @ 23:33:40 Player: Fleshy Vegetable Bird Result: Core destroyed Performance ------------- Evolutions (9) 4500 Regions Visited (22) 4400 Robots Destroyed (184) 920 Value Destroyed (7388) 7388 Prototype IDs (47) 940 Alien Tech Used (0) 0 Bonus (5700) 5700 TOTAL SCORE: 23848 Bonus ------- High Alert Combat Kills 651 Follower Combat Kills 907 Aligned with FarCom 300 Met Warlord at Base 500 MAIN.C Attacked Warlord 500 Warlord Defense Kill 914 Met Warlord at Research 2000 Friendly Fire -72 Cogmind --------- Core Integrity 0/1600 Matter 65/300 Energy 100/100 System Corruption 32% Temperature Cool (0) Location -1/Access Parts ------- Power (2) Propulsion (5) Utility (14) Advanced Signal Interpreter Advanced Melee Analysis Suite Advanced Target Analyzer Experimental Core Analyzer Experimental Hacking Suite System Shield Weapon (4) Inventory (4) Light Particle Reactor Peak State ------------ Power Micro Fission Core Light Quantum Reactor Propulsion Improved Antigrav System Improved Antigrav System Improved Antigrav System Antigrav Array Utility Advanced Power Amplifier Advanced Cooling System Large Storage Unit Energy Well Experimental Optical Array Advanced Signal Interpreter Advanced Melee Analysis Suite Advanced Target Analyzer Experimental Core Analyzer Improved Particle Charger Advanced Transmission Jammer EM Shield EM Shield Improved Hacking Suite Weapon Gamma Rifle Gamma Rifle Gamma Rifle Heavy Neutron Cannon Inventory Improved Antigrav System Combat Antigrav System Combat Antigrav System Combat Antigrav System Antigrav Array Improved Particle Charger Heavy Machine Gun Helical Railgun Phasing Sabre [Rating: 171] Favorites ----------- Power Micro Fission Core Engine Light Ion Engine Power Core Micro Fission Core Reactor Light Quantum Reactor Propulsion Improved Antigrav System Leg Carbon-fiber Leg Wheel Wheel Hover Unit Improved Antigrav System Flight Unit Flying Fortress v7 Utility High-capacity Storage Unit Device EM Shield Storage High-capacity Storage Unit Processor Advanced Terrain Scan Processor Hackware Improved Hacking Suite Protection Centrium Medium Armor Plating Weapon Medium Laser Energy Gun Medium Laser Energy Cannon Heavy Neutron Cannon Ballistic Gun Gauss Rifle Ballistic Cannon Hypervelocity Mass Driver Launcher Improved Proton Missile Launcher Special Weapon Mining Laser Impact Weapon Heavy Mace Slashing Weapon Phasing Sabre Piercing Weapon Enhanced Force Lance Build | -11 -10 -10 -10 -9 -8 -7 -6 -5 -5 -5 -5 -5 -5 -5 -4 -4 -4 -4 -3 -3 -2 -1 ------- Run | Scr Mat Min Exi Min Mat Fac Fac Fac Was Fac Ext Cet Arc Hub Fac Upp Upp War Pro Res Res Acc Slots Evolved 18 | . . . . . 4 2 2 2 . . . . . . 2 . . . . 2 2 2 Power 1 | . . . . . . 1 . . . . . . . . . . . . . . . . Propulsion 3 | . . . . . 2 . . . . . . . . . 1 . . . . . . . Utility 12 | . . . . . 2 1 2 2 . . . . . . 1 . . . . 1 2 1 Weapon 2 | . . . . . . . . . . . . . . . . . . . . 1 . 1 Parts Attached 291 | 7 1 3 4 1 28 13 2 4 . 8 36 15 21 5 10 6 4 7 11 5 51 49 Power 28 | 1 . . 1 . 4 2 . . . 1 4 1 1 . 1 . . . 3 . 7 2 Engine 11 | 1 . . 1 . 4 1 . . . . 2 . 1 . 1 . . . . . . . Core 8 | . . . . . . 1 . . . 1 2 1 . . . . . . 1 . 1 1 Reactor 9 | . . . . . . . . . . . . . . . . . . . 2 . 6 1 Propulsion 63 | 2 . 2 2 . 4 . . . . . 10 4 6 1 3 . 1 1 1 . 10 16 Treads . | . . . . . . . . . . . . . . . . . . . . . . . Leg 3 | . . . . . . . . . . . . 3 . . . . . . . . . . Wheel 9 | 2 . 2 2 . 1 . . . . . 2 . . . . . . . . . . . Hover 39 | . . . . . 1 . . . . . 8 1 6 1 3 . 1 1 1 . . 16 Flight 12 | . . . . . 2 . . . . . . . . . . . . . . . 10 . Utility 92 | 2 1 . 1 . 5 5 2 2 . 1 8 4 6 . 5 3 2 1 2 3 24 15 Device 43 | . . . . . 2 1 1 1 . 1 3 2 2 . 2 1 . . . 2 16 9 Storage 14 | 2 1 . 1 . 1 1 . . . . 2 . . . . 1 1 . . . 2 2 Processor 12 | . . . . . . . 1 . . . . . 1 . 1 . . . 2 1 6 . Hackware 14 | . . . . . 1 1 . 1 . . 1 1 2 . 2 . 1 1 . . . 3 Protection 9 | . . . . . 1 2 . . . . 2 1 1 . . 1 . . . . . 1 Artifact . | . . . . . . . . . . . . . . . . . . . . . . . Weapon 108 | 2 . 1 . 1 15 6 . 2 . 6 14 6 8 4 1 3 1 5 5 2 10 16 Energy Gun 30 | 2 . . . . 9 . . . . . 4 2 1 . . . . . 1 . 5 6 Energy Cannon 6 | . . . . . . 1 . . . . 2 . . . . . . 1 1 . . 1 Ballistic Gun 20 | . . . . . 2 1 . . . 3 2 . 2 1 1 1 1 1 2 . . 3 Ballistic Cannon 7 | . . . . . . . . 1 . 1 1 . . 1 . 1 . 1 . . . 1 Launcher 24 | . . . . 1 3 2 . 1 . 2 3 3 2 . . . . 1 1 . 3 2 Special Weapon 3 | . . 1 . . . . . . . . . . 2 . . . . . . . . . Impact Weapon 7 | . . . . . . . . . . . . 1 1 2 . 1 . 1 . 1 . . Slashing Weapon 9 | . . . . . 1 2 . . . . 2 . . . . . . . . . 1 3 Piercing Weapon 2 | . . . . . . . . . . . . . . . . . . . . 1 1 . Special Melee Weapon . | . . . . . . . . . . . . . . . . . . . . . . . Unidentified Prototypes 21 | . . . . . 3 1 . 1 . . 1 2 1 . . . . 2 . . 6 4 Parts Lost 137 | . . . . . 11 . . . 1 1 20 7 6 3 . . 2 5 17 1 22 41 Power 18 | . . . . . 2 . . . . . 3 1 . . . . . . 4 . 4 4 Propulsion 38 | . . . . . 3 . . . . . 6 3 2 1 . . 1 2 4 . 3 13 Utility 43 | . . . . . 1 . . . . 1 4 1 2 2 . . 1 3 5 . 11 12 Weapon 38 | . . . . . 5 . . . 1 . 7 2 2 . . . . . 4 1 4 12 Highest Loss Streak 17 | . . . . . 3 . . . 1 1 9 4 6 2 . . 2 5 5 1 10 17 Average Slot Usage (%) 82 | . 100 100 100 100 76 75 80 75 79 81 83 93 91 92 96 100 98 91 62 32 73 73 Engine 4 | . 14 14 14 14 8 7 6 5 5 5 1 . 1 5 5 5 5 4 . . . . Core 3 | . . . . . . 6 6 5 5 5 8 10 6 5 5 5 5 5 4 . 2 1 Wheel 5 | . 28 28 28 28 8 . . . . . 6 . . . . . . . . . . . Hover 7 | . . . . . . . . . . . 9 12 7 22 25 26 25 25 9 . . 12 Flight 2 | . . . . . 8 7 6 5 5 5 . . . . . . . . . . 11 . Device 8 | . . . . . 4 7 13 11 17 16 9 10 8 2 4 5 5 5 1 9 20 16 Storage 14 | . 28 28 28 28 18 15 13 11 11 11 13 17 17 17 10 10 10 10 9 . 6 4 Processor 7 | . . . . . . . 6 5 5 5 5 5 6 5 7 10 10 10 16 11 14 18 Hackware 9 | . . . . . 8 7 6 10 11 11 11 14 13 14 20 21 21 22 9 4 4 3 Protection 2 | . . . . . 3 7 6 5 5 5 1 1 4 5 5 4 4 . . . . . Energy Gun 4 | . 28 16 14 . 10 . . . . . 4 2 1 . . . . . . 3 2 7 Ballistic Gun 1 | . . . . . 2 7 . . . 4 1 . . 2 5 . 1 1 3 . . 1 Launcher 1 | . . . . 14 3 1 6 5 2 . . 6 1 . . . . . . . 1 . Special Weapon 2 | . . 11 14 14 . . . . . . . . 7 1 . . . . . . . . Slashing Weapon 1 | . . . . . . 5 6 5 5 5 1 . . . . . . . . . 3 2 Naked Turns . | . . . . . . . . . . . . . . . . . . . . . . . Heaviest Build 89 | 15 43 43 54 55 78 80 76 78 78 84 89 87 83 85 81 72 72 71 79 15 72 78 Greatest Support 126 | 26 26 26 26 26 81 81 81 81 81 81 81 54 50 58 86 86 94 94 77 3 58 126 Greatest Overweight (x) 24 | . 1 2 2 2 14 . . . . 1 8 8 2 2 1 . . 1 24 4 5 1 Average Overweight (x) . | . . 1 1 2 1 . . . . . 2 1 1 1 . . . . . 2 . . Largest Inventory Capacity 22 | 8 14 14 18 18 20 20 18 18 18 18 22 22 18 18 18 12 12 12 12 12 12 14 Average Capacity 14 | 6 11 14 15 18 19 18 18 18 18 18 19 18 18 18 12 12 12 12 12 4 10 8 Most Carried 22 | 4 6 14 18 18 20 19 18 18 18 18 22 19 18 18 18 12 12 12 12 5 12 11 Average Carried 13 | 2 3 13 14 18 18 17 17 17 18 17 14 17 17 17 12 11 11 11 9 3 8 7 Final Capacity 22 | 8 14 14 18 18 20 18 18 18 18 18 22 18 18 18 12 12 12 12 12 4 12 4 Final Carried 20 | 2 6 14 18 18 20 18 18 18 18 18 19 17 18 17 12 12 11 11 6 3 12 1 Class Distribution -------------------- 31% | Scavenger-Mutant 22% | Mutant 11% | Hauler-Mutant 10% | Scavenger-Skirmisher 9% | Hacker-Mutant 5% | Hacker-Scout 4% | Scavenger-Assassin Dominant Class ---------------- Mutant | -10/Materials Mutant | -10/Mines Mutant | -10/Exiles Mutant | -9/Mines Hauler-Mutant | -8/Materials Scavenger-Mutant | -7/Factory Scout | -6/Factory Hacker-Scout | -5/Factory Hacker-Scout | -5/Waste Hacker-Scout | -5/Factory Scavenger-Skirmisher | -5/Extension Scavenger-Skirmisher | -5/Cetus Scavenger-Skirmisher | -5/Archives Scavenger-Mutant | -5/Hub_04(d) Scavenger-Mutant | -4/Factory Scavenger-Mutant | -4/Upper Caves Hacker-Mutant | -4/Upper Caves Hacker-Mutant | -4/Warlord Hacker-Mutant | -3/Proximity Caves Mutant | -3/Research Scavenger-Mutant | -2/Research Scavenger-Mutant | -1/Access Resources | -11 -10 -10 -10 -9 -8 -7 -6 -5 -5 -5 -5 -5 -5 -5 -4 -4 -4 -4 -3 -3 -2 -1 ----------- Run | Scr Mat Min Exi Min Mat Fac Fac Fac Was Fac Ext Cet Arc Hub Fac Upp Upp War Pro Res Res Acc Matter Collected 4888 | 270 10 30 . 100 483 32 . 166 . 93 668 463 366 157 44 95 255 321 274 . 550 511 Remotely . | . . . . . . . . . . . . . . . . . . . . . . . Salvage Created 8267 | 91 20 207 . 89 1042 225 . 166 . 171 1112 1320 655 106 44 50 . 571 418 91 327 1562 Parts 460 | 1 2 18 . 7 68 22 . 5 . 11 57 54 47 10 2 1 . 22 16 5 10 102 Haulers Intercepted 5 | . . . . . 3 1 . . . . . . . . . . . . . . . 1 Recyclers Shooed 4 | . . . . . 1 1 . . . . 1 . . . . . . . . . . 1 Parts Field Recycled . | . . . . . . . . . . . . . . . . . . . . . . . Retrieved Matter . | . . . . . . . . . . . . . . . . . . . . . . . Parts Self-Destructed 99 | . . . . . . . . . . . . . . . . 1 2 84 12 . . . Prevented 3 | . . . . . . . . . . . . . . . . . . 3 . . . . Kills | -11 -10 -10 -10 -9 -8 -7 -6 -5 -5 -5 -5 -5 -5 -5 -4 -4 -4 -4 -3 -3 -2 -1 ------- Run | Scr Mat Min Exi Min Mat Fac Fac Fac Was Fac Ext Cet Arc Hub Fac Upp Upp War Pro Res Res Acc Combat Hostiles Destroyed 120 | . . 6 . 5 14 7 . . . 5 13 18 4 4 . 1 . 7 11 1 3 21 Melee 11 | . . . . . 1 . . . . . 1 . . . . 1 . . . 1 . 7 Guns 32 | . . 6 . . 7 . . . . . 1 . 2 2 . . . 2 3 . 1 8 Cannons 19 | . . . . . . . . . . . 1 . . 2 . . . 5 6 . . 5 AOE 44 | . . . . 5 6 7 . . . 5 8 8 . . . . . . 2 . 2 1 Classes Destroyed 18 | 1 1 2 . 2 6 1 . . . . 1 . . . . 1 . 3 . . . . Worker 13 | . . . . . 5 1 . 1 . . . . . 1 2 . . . . 1 . 2 Builder 9 | . . . . . 2 . . . . . 4 . . 1 . . . . . . . 2 Tunneler 8 | . . 2 . . . 2 . . . 1 2 . . . . . . . . . . 1 Hauler 5 | . . . . . 3 1 . . . . . . . . . . . . . . . 1 Recycler 9 | 1 . 1 . . 2 . . 1 . . 1 . . . . . . . . . 1 2 Mechanic 1 | . . . . . . . . . . . . . . . . . . 1 . . . . Operator 12 | . 1 . . . 3 . . . . . . . 7 . . . . . . . . 1 Watcher 7 | . . . . . 3 . . . . . 1 1 . . . . . . . . 1 1 Swarmer 39 | . . 6 . 3 1 4 . . . 5 2 . . 4 . . . . 4 . 2 8 Grunt 33 | . . . . 1 8 2 . . . . 7 11 . . . . . 3 1 . . . Brawler 5 | . . . . 1 . . . . . . 1 1 . . . . . 2 . . . . Duelist 1 | . . . . . . 1 . . . . . . . . . . . . . . . . Protector 1 | . . . . . . . . . . . . . . . . . . 1 . . . . Sentry 13 | . . . . . 4 . . . . . 2 . 4 . . . . . 1 1 . 1 Demolisher 1 | . . . . . . . . . . . . . . . . . . 1 . . . . Hunter 9 | . . . . . 1 . . . . . . 2 . . . . . . 4 . 1 1 Programmer 11 | . . . . . . . . . . . . . . . . 1 . . . . . 10 Behemoth 2 | . . . . . . . . . . . 1 . . . . . . . 1 . . . Cetus Guard 4 | . . . . . . . . . . . . 4 . . . . . . . . . . Wasp 1 | . . . . . . . . . . . . . . . . . . . . . . 1 Best Kill Streak 8 | 1 1 3 . 5 5 5 . 2 . 5 7 5 2 6 1 1 . 5 2 1 2 8 Combat Bots Only 7 | . . 3 . 5 4 4 . . . 5 7 5 2 4 . 1 . 5 2 1 2 5 Max Kills in Single Turn 3 | 1 1 1 . 2 2 2 . 1 . 3 2 2 1 2 1 1 . 2 1 1 1 2 Gunslinging 1 | . . . . . . . . . . . . . . . . . . . . . . 1 Exploded 3 | . . . . 2 2 2 . . . 3 2 2 . . . . . . 1 . 1 1 Melee 1 | . . . . . 1 . . . . . 1 . . . . 1 . . . 1 . 1 Uniques/NPCs Destroyed . | . . . . . . . . . . . . . . . . . . . . . . . Combat | -11 -10 -10 -10 -9 -8 -7 -6 -5 -5 -5 -5 -5 -5 -5 -4 -4 -4 -4 -3 -3 -2 -1 -------- Run | Scr Mat Min Exi Min Mat Fac Fac Fac Was Fac Ext Cet Arc Hub Fac Upp Upp War Pro Res Res Acc Damage Taken 19013 | . 44 176 . 117 1021 222 478 . 292 166 2940 825 695 482 . 79 365 605 2221 136 2345 5804 Core 4464 | . 21 38 . 7 67 34 52 . 63 15 450 38 143 44 . 29 44 61 889 58 785 1626 Absorbed by Shields 221 | . . . . . . 27 . . . . 194 . . . . . . . . . . . Core Remaining (%) 69 | 100 . . . 73 87 95 93 . . . . . . 24 . . . . 11 95 45 . Volleys Fired 459 | 7 2 19 . 5 90 11 . . . 7 76 27 46 10 1 3 10 28 36 12 8 61 Largest 4 | 2 2 2 . 1 2 2 . . . 1 2 2 2 2 1 2 2 2 2 1 2 4 Hottest 345 | 100 100 150 . 30 115 69 . . . 48 130 86 103 83 33 99 99 99 101 63 176 345 Shots Fired 735 | 14 4 32 . 5 136 15 . . . 5 140 45 92 19 1 6 20 39 50 12 9 91 Gun 446 | 14 4 28 . . 127 7 . . . . 92 5 28 10 1 3 10 11 25 12 4 65 Cannon 129 | . . . . . . . . . . 1 39 . . 7 . 3 10 28 20 . . 21 Launcher 98 | . . . . 5 9 8 . . . 4 9 40 8 . . . . . 5 . 5 5 Special 62 | . . 4 . . . . . . . . . . 56 2 . . . . . . . . Kinetic 275 | . . . . . 38 7 . . . 1 36 . 23 17 1 6 20 39 32 . . 55 Thermal 224 | 14 4 32 . . 53 . . . . . 27 . 56 2 . . . . 4 12 4 16 Explosive 27 | . . . . 5 9 8 . . . . . . . . . . . . . . . 5 Electromagnetic 195 | . . . . . 36 . . . . 4 77 45 13 . . . . . . . 5 15 Entropic 14 | . . . . . . . . . . . . . . . . . . . 14 . . . Robot Hit Streak 17 | 5 3 6 . 2 14 2 . . . 1 8 7 17 2 . 4 4 12 14 4 2 7 Robot Miss Streak 6 | 2 1 2 . 2 6 4 . . . 2 4 2 5 3 1 1 5 3 4 2 5 2 Penetration Max 1 | . . . . . . . . . . . 1 . 1 . . . . 1 1 . . . Secondary Targets 4 | . . . . . 1 . . . . . . . . . . . . . 1 . . 2 Max Gunslinging Chain 1 | . . . . . 1 . . . . . . . . . . . . . 1 . . 1 Shots Hit Robots 511 | 10 2 19 . 2 98 9 . 4 . 4 89 16 54 8 1 11 8 27 31 14 10 94 Core Hits 378 | 2 2 10 . 6 80 15 . 2 . 8 53 42 33 5 1 2 . 16 20 7 14 60 Critical Hits 60 | . . . . . 1 . . . . . . . 12 . . 2 3 14 11 . 3 14 Critical Kills 22 | . . . . . 1 . . . . . . . 4 . . . . 7 4 . 1 5 Critical Parts Destroyed 35 | . . . . . . . . . . . . . 8 . . 2 3 5 6 . 2 9 Melee Attacks 317 | . . . . . 14 32 10 6 8 25 27 3 2 31 7 15 . 14 . 8 18 97 Impact 75 | . . . . . . . . . . . . 3 2 31 7 15 . 14 . 3 . . Slashing 237 | . . . . . 14 32 10 6 8 25 27 . . . . . . . . . 18 97 Piercing 5 | . . . . . . . . . . . . . . . . . . . . 5 . . Sneak Attacks 24 | . . . . . . 3 . 3 . 2 3 . . 1 1 . . . . 1 1 9 Combat Hostiles . | . . . . . . . . . . . . . . . . . . . . . . . Follow-up Attacks 2 | . . . . . . . . . . . . . . . . . . . . 2 . . Damage Inflicted 21625 | 139 25 264 . 267 2366 942 . 316 . 547 3349 2745 1446 357 153 294 114 609 2109 433 595 4555 Guns 5779 | 139 25 240 . . 1519 21 . . . . 868 117 573 73 25 48 46 237 425 118 26 1279 Cannons 3306 | . . . . . . . . . . . 1066 . . 131 . 60 68 372 922 . . 687 Explosions 6896 | . . . . 267 755 540 . . . 312 791 2628 323 . . . . . 762 . 239 279 Melee 5051 | . . . . . 92 381 . 316 . 235 624 . . 153 128 186 . . . 315 330 2291 Ramming 19 | . . . . . . . . . . . . . . . . . . . . . . 19 Kinetic 4892 | . . . . . 431 21 . . . . 824 . 487 204 25 108 114 609 518 . . 1551 Thermal 3231 | 139 25 264 . . 781 . . . . . 629 355 550 . . . . . 17 118 26 327 Explosive 1565 | . . . . 267 479 540 . . . . . . . . . . . . . . . 279 Electromagnetic 5293 | . . . . . 583 . . . . 312 1272 2390 409 . . . . . . . 239 88 Impact 508 | . . . . . . . . . . . . . . 153 128 186 . . . 41 . . Slashing 4269 | . . . . . 92 381 . 316 . 235 624 . . . . . . . . . 330 2291 Piercing 274 | . . . . . . . . . . . . . . . . . . . . 274 . . Entropic 1574 | . . . . . . . . . . . . . . . . . . . 1574 . . . Highest Corruption 32 | . . . . . . . . . 8 8 9 9 9 9 . 2 2 8 8 . . 32 Average Corruption 8 | . . . . . . . . . 7 8 8 9 9 9 . 2 2 4 8 . . 15 Corruption Purged . | . . . . . . . . . . . . . . . . . . . . . . . Effects 277 | . . . . . . . . . 2 19 69 23 37 18 . 5 6 3 27 . . 68 Message Errors 39 | . . . . . . . . . 1 3 8 3 8 2 . 1 2 2 1 . . 8 Matter Fused 45 | . . . . . . . . . 1 3 9 7 5 8 . . . . 4 . . 8 Heat Flow Errors 23 | . . . . . . . . . . 3 4 4 2 1 . 1 . . 3 . . 5 Energy Discharges 33 | . . . . . . . . . . 3 5 2 5 3 . 2 2 . 3 . . 8 Parts Rejected 5 | . . . . . . . . . . . 1 . 1 . . . . 1 1 . . 1 Data Loss (minor) 29 | . . . . . . . . . . 2 9 3 5 . . 1 2 . 3 . . 4 Data Loss (major) 6 | . . . . . . . . . . 1 2 . 2 . . . . . 1 . . . Misfires 11 | . . . . . . . . . . . 4 . . 1 . . . . 4 . . 2 Misdirections 10 | . . . . . . . . . . . . . . . . . . . . . . 10 Targeting Errors 69 | . . . . . . . . . . 2 26 4 9 3 . . . . 5 . . 20 Weapon Failures 7 | . . . . . . . . . . 2 1 . . . . . . . 2 . . 2 Overload Shots . | . . . . . . . . . . . . . . . . . . . . . . . Overflow Damage 1270 | . . . . . 49 . . 53 . 134 185 20 9 77 88 . . . 82 53 81 439 Projectiles 106 | . . . . . . . . . . . 23 . . . . . . . 81 . . 2 Explosions 81 | . . . . . 49 . . . . 2 . 20 9 . . . . . 1 . . . Melee 1083 | . . . . . . . . 53 . 132 162 . . 77 88 . . . . 53 81 437 Knockbacks 26 | . . . . . . . . . . . 1 . . 7 1 2 5 1 3 . . 6 Impact 5 | . . . . . . . . . . . . . . 2 1 1 . . . . . 1 Kinetic 18 | . . . . . . . . . . . 1 . . 3 . 1 4 1 3 . . 5 Secondary 3 | . . . . . . . . . . . . . . 2 . . 1 . . . . . Self-Inflicted Damage 599 | . . . . 32 296 53 . . . . 128 16 . . . . . . . . 9 65 Shots 23 | . . . . 1 6 3 . . . . 9 2 . . . . . . . . 1 1 Rammed 6 | . . . . . . . . . . . . . . . . . . . . . . 6 Targets Rammed 6 | . . . . . . . . . . . . . . . . . . . . . . 6 Kicked . | . . . . . . . . . . . . . . . . . . . . . . . Crushed . | . . . . . . . . . . . . . . . . . . . . . . . Highest Temperature 444 | 234 39 195 . 1 444 87 20 . . 276 342 207 207 153 . 155 . 10 264 . 46 379 Average Temperature 82 | 108 24 65 . 1 52 29 9 . . 95 117 108 80 75 . 102 . 5 106 . 19 121 Received Heat Transfer 1600 | . 24 . . 6 288 43 105 . . . 513 108 117 18 . . . 63 72 27 63 153 Effects 9 | . . . . . . . . . . . 2 . 3 . . . . . . . . 4 Energy Bleed 1 | . . . . . . . . . . . . . . . . . . . . . . 1 Interference 8 | . . . . . . . . . . . 2 . 3 . . . . . . . . 3 Siege Activations . | . . . . . . . . . . . . . . . . . . . . . . . Robots Corrupted 14 | . . . . . . . . . . . 2 10 2 . . . . . . . . . Combat Hostiles 14 | . . . . . . . . . . . 2 10 2 . . . . . . . . . Parts Fried 38 | . . . . . 6 . . . . 4 5 15 5 . 1 . . . . . 1 1 Impact Corruptions 6 | . . . . . . . . . . . . . . 3 3 . . . . . . . Robots Melted . | . . . . . . . . . . . . . . . . . . . . . . . Combat Hostiles . | . . . . . . . . . . . . . . . . . . . . . . . Parts Melted 7 | . . 1 . . 3 . . . . . . . 2 . . . . . 1 . . . Heat Transferred 5570 | 407 74 753 . . 1201 . . . . . 859 400 1258 . . . . . 37 259 37 285 Parts Sabotaged . | . . . . . . . . . . . . . . . . . . . . . . . Parts Stolen . | . . . . . . . . . . . . . . . . . . . . . . . Parts Stripped . | . . . . . . . . . . . . . . . . . . . . . . . Power Chain Reactions 12 | . . . . . 4 . . . . . 1 7 . . . . . . . . . . Missiles Intercepted . | . . . . . . . . . . . . . . . . . . . . . . . Alert | -11 -10 -10 -10 -9 -8 -7 -6 -5 -5 -5 -5 -5 -5 -5 -4 -4 -4 -4 -3 -3 -2 -1 ------- Run | Scr Mat Min Exi Min Mat Fac Fac Fac Was Fac Ext Cet Arc Hub Fac Upp Upp War Pro Res Res Acc Peak Influence 979 | 5 23 108 . 165 341 482 295 158 74 213 979 930 255 149 73 . . . . 94 193 331 Average Influence 144 | 1 11 64 . 147 160 161 271 151 61 83 225 662 102 40 23 . . . . 66 35 107 Maximum Alert Level 3 | . . . . . 1 2 1 . . 1 3 3 1 . . . . . . . . 1 Low Security (%) 81 | . . . . . . . . . . . . . . . . . . . . . . . Level 1 11 | . . . . . . . . . . . . . . . . . . . . . . . Level 2 3 | . . . . . . . . . . . . . . . . . . . . . . . Level 3 4 | . . . . . . . . . . . . . . . . . . . . . . . Level 4 . | . . . . . . . . . . . . . . . . . . . . . . . Level 5 . | . . . . . . . . . . . . . . . . . . . . . . . High Security . | . . . . . . . . . . . . . . . . . . . . . . . Max Security . | . . . . . . . . . . . . . . . . . . . . . . . Squads Dispatched 24 | . 1 . . . 2 4 . 1 . 3 4 1 . 1 . . . . . 1 1 5 Investigation 10 | . . . . . . 3 . . . . 4 1 . . . . . . . . . 2 Extermination 5 | . . . . . . 1 . . . . . . . . . . . . . 1 . 3 Reinforcement 9 | . 1 . . . 2 . . 1 . 3 . . . 1 . . . . . . 1 . Assault . | . . . . . . . . . . . . . . . . . . . . . . . Garrison . | . . . . . . . . . . . . . . . . . . . . . . . Intercept . | . . . . . . . . . . . . . . . . . . . . . . . Construction Impeded 4 | . . . . . 1 . . . . 2 . . . 1 . . . . . . . . Haulers Reinforced . | . . . . . . . . . . . . . . . . . . . . . . . Stealth | -11 -10 -10 -10 -9 -8 -7 -6 -5 -5 -5 -5 -5 -5 -5 -4 -4 -4 -4 -3 -3 -2 -1 --------- Run | Scr Mat Min Exi Min Mat Fac Fac Fac Was Fac Ext Cet Arc Hub Fac Upp Upp War Pro Res Res Acc Distress Signals 17 | . 1 . . . 2 3 . . . . 1 2 . . . . . . . . 6 2 Communications Jammed . | . . . . . . . . . . . . . . . . . . . . . . . Distress Signals . | . . . . . . . . . . . . . . . . . . . . . . . Times Spotted 383 | . 4 6 . 8 39 22 7 1 5 13 54 33 45 6 2 2 9 36 13 2 20 56 Peak Tracking Total 13 | . 2 3 . 3 4 7 4 1 5 5 8 6 2 4 3 1 4 10 5 1 5 13 Tactical Retreats 52 | . . . . 1 10 4 2 . . 2 6 8 . . . 1 3 3 1 . . 11 Traps | -11 -10 -10 -10 -9 -8 -7 -6 -5 -5 -5 -5 -5 -5 -5 -4 -4 -4 -4 -3 -3 -2 -1 ------- Run | Scr Mat Min Exi Min Mat Fac Fac Fac Was Fac Ext Cet Arc Hub Fac Upp Upp War Pro Res Res Acc Traps Triggered 7 | . . . . . . 3 1 1 . 1 1 . . . . . . . . . . . Indirectly . | . . . . . . . . . . . . . . . . . . . . . . . Trap Hack Attempts . | . . . . . . . . . . . . . . . . . . . . . . . Triggered . | . . . . . . . . . . . . . . . . . . . . . . . Disarmed . | . . . . . . . . . . . . . . . . . . . . . . . Reprogrammed . | . . . . . . . . . . . . . . . . . . . . . . . Reused . | . . . . . . . . . . . . . . . . . . . . . . . Traps Extracted . | . . . . . . . . . . . . . . . . . . . . . . . Installed . | . . . . . . . . . . . . . . . . . . . . . . . Triggered 11 | . . . . . . . . . . . 3 . . . . . . 8 . . . . Exploded 2 | . . . . . 1 1 . . . . . . . . . . . . . . . . Machines | -11 -10 -10 -10 -9 -8 -7 -6 -5 -5 -5 -5 -5 -5 -5 -4 -4 -4 -4 -3 -3 -2 -1 ---------- Run | Scr Mat Min Exi Min Mat Fac Fac Fac Was Fac Ext Cet Arc Hub Fac Upp Upp War Pro Res Res Acc Machines Disabled 31 | . . . . 2 7 3 . . . 2 5 7 4 . . . . . . . . 1 Max in Single Turn 2 | . . . . 1 1 1 . . . 1 1 2 2 . . . . . . . . 1 Garrison Access 2 | . . . . . . 1 1 . . . . . . . . . . . . . . . Energy Cycler 1 | . . . . . . . . . . . 1 . . . . . . . . . . . Machines Sabotaged . | . . . . . . . . . . . . . . . . . . . . . . . Garrisons Compromised . | . . . . . . . . . . . . . . . . . . . . . . . Overloaded Fab Kills . | . . . . . . . . . . . . . . . . . . . . . . . Fab Network Shutdowns . | . . . . . . . . . . . . . . . . . . . . . . . Hacking | -11 -10 -10 -10 -9 -8 -7 -6 -5 -5 -5 -5 -5 -5 -5 -4 -4 -4 -4 -3 -3 -2 -1 --------- Run | Scr Mat Min Exi Min Mat Fac Fac Fac Was Fac Ext Cet Arc Hub Fac Upp Upp War Pro Res Res Acc Machines Accessed 67 | . 1 . 1 . 7 13 4 . . 4 8 3 1 3 2 . . 7 . 2 1 10 Terminals 44 | . 1 . . . 7 5 3 . . 3 8 3 . 3 2 . . . . 1 1 7 Fabricators 7 | . . . . . . 4 . . . 1 . . . . . . . . . . . 2 Repair Stations . | . . . . . . . . . . . . . . . . . . . . . . . Recycling Units 3 | . . . . . . 3 . . . . . . . . . . . . . . . . Scanalyzers . | . . . . . . . . . . . . . . . . . . . . . . . Garrison Access 4 | . . . . . . 1 1 . . . . . . . . . . . . 1 . 1 Total Hacks 189 | . 2 . 1 . 20 33 11 . . 7 14 20 25 14 8 . . 8 . 3 2 21 Successful 115 | . . . 1 . 8 18 6 . . 5 12 12 25 9 7 . . 8 . . 1 3 Failed 73 | . 2 . . . 12 15 5 . . 2 1 8 . 5 1 . . . . 3 1 18 Catastrophic 10 | . . . . . 2 1 1 . . . . 1 . . . . . . . 2 1 2 Database Lockouts 1 | . . . . . . . . . . . 1 . . . . . . . . . . . Manual 98 | . 2 . 1 . 20 22 10 . . 5 2 8 1 5 5 . . . . . 2 15 Terminals 136 | . 2 . . . 20 21 10 . . 6 14 20 . 14 8 . . . . 2 2 17 Fabricators 10 | . . . . . . 6 . . . 1 . . . . . . . . . . . 3 Repair Stations . | . . . . . . . . . . . . . . . . . . . . . . . Recycling Units 5 | . . . . . . 5 . . . . . . . . . . . . . . . . Scanalyzers . | . . . . . . . . . . . . . . . . . . . . . . . Garrison Access 4 | . . . . . . 1 1 . . . . . . . . . . . . 1 . 1 Terminal Hacks 81 | . . . 1 . 4 5 2 . . 2 11 11 25 8 4 . . 8 . . . . Record 45 | . . . . . . . . . . . 3 7 25 3 . . . 7 . . . . Part Schematic 4 | . . . . . 2 . . . . . 2 . . . . . . . . . . . Robot Analysis 3 | . . . . . . . . . . . . . . 2 1 . . . . . . . Prototype ID Bank 1 | . . . . . . . . . . . . . . . 1 . . . . . . . Open Door 6 | . . . . . . . . . . 1 4 . . . . . . 1 . . . . Level Access Points 1 | . . . . . . 1 . . . . . . . . . . . . . . . . Branch Access Points 6 | . . . . . . 1 1 . . . 1 1 . 1 1 . . . . . . . Terminal Index 5 | . . . . . 1 1 1 . . . . . . 1 1 . . . . . . . Unreport Threat 5 | . . . . . 1 . . . . 1 . 3 . . . . . . . . . . Locate Traps 2 | . . . . . . . . . . . 1 . . 1 . . . . . . . . Zone Layout 2 | . . . . . . 2 . . . . . . . . . . . . . . . . EX-Prototype ID Bank 1 | . . . 1 . . . . . . . . . . . . . . . . . . . Fabricator Hacks 3 | . . . . . . 2 . . . 1 . . . . . . . . . . . . Build 3 | . . . . . . 2 . . . 1 . . . . . . . . . . . . Repair Station Hacks . | . . . . . . . . . . . . . . . . . . . . . . . Recycling Unit Hacks 2 | . . . . . . 2 . . . . . . . . . . . . . . . . Process 1 | . . . . . . 1 . . . . . . . . . . . . . . . . Retrieve Matter 1 | . . . . . . 1 . . . . . . . . . . . . . . . . Scanalyzer . | . . . . . . . . . . . . . . . . . . . . . . . Garrison Access Hacks 2 | . . . . . . 1 1 . . . . . . . . . . . . . . . Seal Access 2 | . . . . . . 1 1 . . . . . . . . . . . . . . . Unauthorized Hacks 81 | . . . . . 17 23 8 . . 6 2 3 . 2 6 . . . . . 2 12 Terminals 24 | . . . . . 4 5 3 . . 2 1 1 . 1 3 . . . . . 1 3 Assimilate 4 | . . . . . 1 . . . . 1 . . . . 2 . . . . . . . Botnet 19 | . . . . . 2 5 3 . . 1 1 1 . 1 1 . . . . . 1 3 Operators 1 | . . . . . 1 . . . . . . . . . . . . . . . . . Fabricators . | . . . . . . . . . . . . . . . . . . . . . . . Repair Stations . | . . . . . . . . . . . . . . . . . . . . . . . Recycling Units 3 | . . . . . . 3 . . . . . . . . . . . . . . . . Tunnel 3 | . . . . . . 3 . . . . . . . . . . . . . . . . Scanalyzers . | . . . . . . . . . . . . . . . . . . . . . . . Garrison Access . | . . . . . . . . . . . . . . . . . . . . . . . Data Cores Recovered 2 | . . . . . 1 . . . . . . . . . . . . . . . . 1 Used 1 | . . . . . . . . . . . . . . . . . . . . . . 1 Hacking Detections 47 | . 1 . . . 7 9 3 . . 2 5 3 . 2 2 . . . . 2 1 10 Full Trace Events 6 | . . . . . . . . . . . 3 1 . . . . . . . . . 2 Feedback Events . | . . . . . . . . . . . . . . . . . . . . . . . Feedback Blocked . | . . . . . . . . . . . . . . . . . . . . . . . Robot Schematics Acquired . | . . . . . . . . . . . . . . . . . . . . . . . Robots Built 2 | . . . . . . 2 . . . . . . . . . . . . . . . . Matter 219 | . . . . . . 219 . . . . . . . . . . . . . . . . Time 116 | . . . . . . 116 . . . . . . . . . . . . . . . . Total Robot Build Rating 6 | . . . . . . 6 . . . . . . . . . . . . . . . . Part Schematics Acquired 4 | . . . . . 2 . . . . . 2 . . . . . . . . . . . Parts Built 1 | . . . . . . 1 . . . . . . . . . . . . . . . . Matter 446 | . . . . . . 212 . . . 234 . . . . . . . . . . . . Time 223 | . . . . . . 106 . . . 117 . . . . . . . . . . . . Total Part Build Rating 6 | . . . . . . 6 . . . . . . . . . . . . . . . . Parts Repaired . | . . . . . . . . . . . . . . . . . . . . . . . Time . | . . . . . . . . . . . . . . . . . . . . . . . Parts Recycled . | . . . . . . . . . . . . . . . . . . . . . . . Recycled Matter 3 | . . . . . . 3 . . . . . . . . . . . . . . . . Retrieved Matter 3 | . . . . . . 3 . . . . . . . . . . . . . . . . Retrieved Components . | . . . . . . . . . . . . . . . . . . . . . . . Parts Scanalyzed . | . . . . . . . . . . . . . . . . . . . . . . . Part Schematics Acquired . | . . . . . . . . . . . . . . . . . . . . . . . Parts Damaged . | . . . . . . . . . . . . . . . . . . . . . . . Bothacking | -11 -10 -10 -10 -9 -8 -7 -6 -5 -5 -5 -5 -5 -5 -5 -4 -4 -4 -4 -3 -3 -2 -1 ------------ Run | Scr Mat Min Exi Min Mat Fac Fac Fac Was Fac Ext Cet Arc Hub Fac Upp Upp War Pro Res Res Acc Used RIF Installer . | . . . . . . . . . . . . . . . . . . . . . . . Robots Hacked . | . . . . . . . . . . . . . . . . . . . . . . . Non-combat . | . . . . . . . . . . . . . . . . . . . . . . . Combat . | . . . . . . . . . . . . . . . . . . . . . . . Robot Hacks Applied . | . . . . . . . . . . . . . . . . . . . . . . . Relay Couplers Released . | . . . . . . . . . . . . . . . . . . . . . . . Robots Rewired . | . . . . . . . . . . . . . . . . . . . . . . . Allies Hacked . | . . . . . . . . . . . . . . . . . . . . . . . Hacks Repelled . | . . . . . . . . . . . . . . . . . . . . . . . Allies | -11 -10 -10 -10 -9 -8 -7 -6 -5 -5 -5 -5 -5 -5 -5 -4 -4 -4 -4 -3 -3 -2 -1 -------- Run | Scr Mat Min Exi Min Mat Fac Fac Fac Was Fac Ext Cet Arc Hub Fac Upp Upp War Pro Res Res Acc Total Allies 11 | . . . . . . 2 . . 1 . 6 . . . 2 . . . . . . . Largest Group 4 | . . . . . . 2 . . 1 . 4 . . . 1 . . . . . . . Highest-Rated Group 244 | . . . . . . 42 . . 31 . 244 . . . 26 . . . . . . . Highest-Rated Ally 156 | . . . . . . 21 . . 31 . 156 . . . 26 . . . . . . . Total Orders . | . . . . . . . . . . . . . . . . . . . . . . . Ally Attacks 143 | . . . . . . 11 . . 19 . 113 . . . . . . . . . . . Total Damage 3402 | . . . . . . 243 . . 246 . 2913 . . . . . . . . . . . Kills 31 | . . . . . . 3 . . . . 28 . . . . . . . . . . . Allies Corrupted . | . . . . . . . . . . . . . . . . . . . . . . . Allies Melted . | . . . . . . . . . . . . . . . . . . . . . . . Intel | -11 -10 -10 -10 -9 -8 -7 -6 -5 -5 -5 -5 -5 -5 -5 -4 -4 -4 -4 -3 -3 -2 -1 ------- Run | Scr Mat Min Exi Min Mat Fac Fac Fac Was Fac Ext Cet Arc Hub Fac Upp Upp War Pro Res Res Acc Robot Analysis Total 3 | . . . . . . . . . . . . . . 2 1 . . . . . . . Derelict Logs Recovered 4 | . . 1 . . . . . . . . . . . . . 2 1 . . . . . Drone Launches . | . . . . . . . . . . . . . . . . . . . . . . . Drone Recoveries . | . . . . . . . . . . . . . . . . . . . . . . . Exploration | -11 -10 -10 -10 -9 -8 -7 -6 -5 -5 -5 -5 -5 -5 -5 -4 -4 -4 -4 -3 -3 -2 -1 ------------- Run | Scr Mat Min Exi Min Mat Fac Fac Fac Was Fac Ext Cet Arc Hub Fac Upp Upp War Pro Res Res Acc Turns Passed 13619 | 84 140 866 498 307 1791 716 157 93 68 514 1237 549 881 535 157 440 397 662 665 312 1059 1491 Spaces Moved 11784 | 53 134 787 465 182 1184 897 241 100 96 443 761 257 329 242 196 742 710 832 437 154 899 1643 Core 544 | 5 . . . . . . . . . . . . . . . . . . 17 154 56 312 Treads . | . . . . . . . . . . . . . . . . . . . . . . . Legs 324 | . . . . . . . . . . . . 99 225 . . . . . . . . . Wheels 2626 | 48 134 787 465 182 549 . . . . . 461 . . . . . . . . . . . Hover 4866 | . . . . . . . . . . . 142 158 104 242 196 742 710 832 420 . . 1320 Flight 3424 | . . . . . 635 897 241 100 96 443 158 . . . . . . . . . 843 11 Fastest Speed 34 | 50 90 100 100 110 50 50 50 50 50 50 50 115 108 108 50 50 50 54 58 150 34 44 Average Speed 79 | 86 95 100 104 110 90 50 50 50 50 52 101 167 142 109 51 50 50 55 122 166 91 54 Slowest Speed 1250 | 90 100 100 110 110 1170 50 50 50 50 150 166 540 180 172 115 50 55 131 1250 250 300 112 Overloaded Moves . | . . . . . . . . . . . . . . . . . . . . . . . Propulsion Burnouts . | . . . . . . . . . . . . . . . . . . . . . . . Robots Hopped 5 | . . . . . 2 1 . . . . 1 . . . . . . . . . 1 . Cave-ins Triggered 4 | . . . . . . . . . 1 . . . . . . . . 1 . . . 2 Exploration Rate (%) 48 | 4 29 99 66 48 68 31 8 5 78 10 84 82 96 27 7 69 83 76 67 5 29 47 Regions Visited 22 Branch Regions 11 Pre-discovered Areas 5 | . . 1 . . . 3 . . . . . . . . . 1 . . . . . . Known Exits Taken 6 | . . . . . . 1 . . . . 1 1 . . 1 . . . . 1 1 . Unknown Exits Taken 14 | 1 1 1 1 1 1 . 1 . . 1 . . 1 1 . 1 1 1 1 . . . Scrap Searched 11 | . . 2 . 1 . . . . . . . . . . . 3 4 . 1 . . . Spaces Dug 175 | . . . . . 25 23 8 2 8 13 11 . . 17 5 2 . 3 . . 6 52 Terrain Destroyed 567 | . . . . 36 118 54 8 2 8 13 22 26 4 23 5 2 1 8 77 . 6 154 Melee 154 | . . . . . 6 23 8 2 8 13 10 . . 16 5 2 . 3 . . 6 52 Projectile 47 | . . . . . 1 . . . . . 8 . 4 7 . . 1 5 13 . . 8 AOE 366 | . . . . 36 111 31 . . . . 4 26 . . . . . . 64 . . 94 Actions | -11 -10 -10 -10 -9 -8 -7 -6 -5 -5 -5 -5 -5 -5 -5 -4 -4 -4 -4 -3 -3 -2 -1 --------- Run | Scr Mat Min Exi Min Mat Fac Fac Fac Was Fac Ext Cet Arc Hub Fac Upp Upp War Pro Res Res Acc Total 14757 | 77 142 826 479 283 1741 1098 264 133 103 680 1046 316 586 430 241 772 729 972 526 189 1106 2018 Wait 1449 | . . 2 . 94 371 91 2 21 . 188 102 3 161 139 3 3 1 76 34 4 55 99 Move 11750 | 52 133 786 464 181 1179 894 240 100 94 442 758 256 328 241 195 741 709 830 436 153 896 1642 Hop 5 | . . . . . 2 1 . . . . 1 . . . . . . . . . 1 . Pick Up 291 | 10 5 12 6 1 37 10 6 2 . 6 32 9 19 2 12 2 3 7 8 5 57 40 Fast Attach . | . . . . . . . . . . . . . . . . . . . . . . . Attach 190 | 7 . . . . 14 2 2 2 . 2 24 9 10 2 6 . 2 7 11 5 43 42 Detach 10 | . . . . . . . . . . . . . . . . . . 3 . . 5 2 Swap 101 | . 1 3 4 1 14 11 . 2 . 6 12 6 11 3 4 6 2 . . . 8 7 Drop 137 | 1 1 4 5 1 20 9 4 . . 4 8 3 9 2 13 2 2 6 1 5 15 22 Fire 459 | 7 2 19 . 5 90 11 . . . 7 76 27 46 10 1 3 10 28 36 12 8 61 Melee 314 | . . . . . 14 32 10 6 8 25 27 3 2 31 7 15 . 14 . 5 18 97 Ram 5 | . . . . . . . . . . . . . . . . . . . . . . 5 Kick . | . . . . . . . . . . . . . . . . . . . . . . . Crush . | . . . . . . . . . . . . . . . . . . . . . . . Escape Stasis 46 | . . . . . . 37 . . 1 . 6 . . . . . . 1 . . . 1 Rewire . | . . . . . . . . . . . . . . . . . . . . . . . Trap . | . . . . . . . . . . . . . . . . . . . . . . . Miscellaneous . | . . . . . . . . . . . . . . . . . . . . . . . Route ------- -11/Scrapyard -10/Materials -10/Mines (discovered 3 exits: [*Mat x2] / *Exi) -10/Exiles (discovered 2 exits: [*Min x2]) -9/Mines -8/Materials (discovered 3 exits: *Fac x3) -7/Factory (discovered 6 exits: *Fac x4 / Low x2) -6/Factory (discovered 3 exits: [*Fac] / Low x2) -5/Factory -5/Waste -5/Factory -5/Extension (discovered 2 exits: *Fac / *Cet) -5/Cetus -5/Archives (discovered 3 exits: *Fac / *Hub x2) -5/Hub_04(d) (discovered 2 exits: *Fac x2) -4/Factory (discovered 2 exits: *Upp x2) -4/Upper Caves -4/Upper Caves (discovered 2 exits: *Res / *War) -4/Warlord -3/Proximity Caves -3/Research (discovered 2 exits: *Res x2) -2/Research -1/Access History --------- Turn | Location | Event 21 | -11/Scrapyard | Discovered new exit (range 16) 85 | -11/Scrapyard | Entered Materials 206 | -10/Materials | Discovered new exit (range 13) 225 | -10/Materials | Entered Mines 227 | -10/Mines | Discovered new exit (range 12) 301 | -10/Mines | Build established: Mutant 521 | -10/Mines | Learned Materials non-interactive machine intel 593 | -10/Mines | Deemed a non-threat by the Exiles lab entrance 594 | -10/Mines | Discovered new exit (range 5) 776 | -10/Mines | Discovered new exit (range 8) 816 | -10/Mines | Learned location of Storage (-9) 1091 | -10/Mines | Entered Exiles 1115 | -10/Exiles | Met 8R-AWN 1132 | -10/Exiles | Met EX-HEX 1168 | -10/Exiles | Discovered new exit (range 15) 1256 | -10/Exiles | Met EX-BIN 1270 | -10/Exiles | Aligned with FarCom system 1271 | -10/Exiles | Given EX-Vault access code 1295 | -10/Exiles | Opened EX-Vault 1325 | -10/Exiles | Warned to stay clear of 0b10 Research branches 1454 | -10/Exiles | Found Flying Fortress v7 1507 | -10/Exiles | Met EX-DEC 1577 | -10/Exiles | Discovered new exit (range 14) 1589 | -10/Exiles | Left Exiles lab with Flying Fortress v7 1589 | -10/Exiles | Entered Mines 1741 | -9/Mines | Discovered new exit (range 6) 1780 | -9/Mines | Assembled infested the area 1896 | -9/Mines | Entered Materials 1896 | -8/Materials | Evolved 4 slots: Propulsion x2, Utility x2 1897 | -8/Materials | Loaded intel: 47 non-interactive machine locations 2354 | -8/Materials | Lost 3 parts (1n2w) 2390 | -8/Materials | Discovered new exit (range 16) 2488 | -8/Materials | Build established: Hauler-Mutant 2772 | -8/Materials | Discovered new exit (range 5) 2880 | -8/Materials | Discovered new exit (range 13) 3687 | -8/Materials | Entered Factory 3687 | -7/Factory | Evolved 2 slots: Power x1, Utility x1 3916 | -7/Factory | Fabricated Imp. Arc Projector? 4029 | -7/Factory | Build established: Scavenger-Mutant 4224 | -7/Factory | Identified exit to Lower Caves 4228 | -7/Factory | Fabricated H-55 Commando? 4311 | -7/Factory | Identified exit to Factory 4403 | -7/Factory | Build established: Mutant 4403 | -7/Factory | Entered another Factory area 4403 | -6/Factory | Evolved 2 slots: Utility x2 4443 | -6/Factory | Discovered new exit (range 16) 4477 | -6/Factory | Identified exit to Lower Caves 4560 | -6/Factory | Entered another Factory area 4560 | -5/Factory | Evolved 2 slots: Utility x2 4653 | -5/Factory | Sucked down chute 4653 | -5/Factory | Entered Waste 4654 | -5/Waste | Met a frightened Derelict 4661 | -5/Waste | Spotted C-40 Crusher 4663 | -5/Waste | Spotted C-40 Crusher 4664 | -5/Waste | Spotted C-40 Crusher 4665 | -5/Waste | Spotted C-40 Crusher 4668 | -5/Waste | EMP discharged 4699 | -5/Waste | Crushed by falling debris 4703 | -5/Waste | Spotted C-40 Crusher 4716 | -5/Waste | Discovered new exit (range 10) 4721 | -5/Waste | Entered Factory 4866 | -5/Factory | Build established: Hacker-Scout 5058 | -5/Factory | Discovered new exit (range 20) 5235 | -5/Factory | Entered Extension 5339 | -5/Extension | Spotted B-75 Beast 5447 | -5/Extension | Destroyed B-75 Beast 5459 | -5/Extension | Lost 4 parts (2u2w) 5466 | -5/Extension | Spotted B-75 Beast 5539 | -5/Extension | Lost 9 parts (1p5n1u2w) 5610 | -5/Extension | Disrupted transfer network 5720 | -5/Extension | Rescued a captive Derelict 5721 | -5/Extension | Rescued a captive Derelict 5781 | -5/Extension | Rescued a captive Derelict 5782 | -5/Extension | Rescued a captive Derelict 5869 | -5/Extension | Build established: Scavenger-Skirmisher 5900 | -5/Extension | Rescued A7 6052 | -5/Extension | Energy Cycler disabled 6054 | -5/Extension | Rescued a captive Derelict 6179 | -5/Extension | Identified exit to Cetus 6292 | -5/Extension | Central database locked down 6325 | -5/Extension | Disrupted transfer network 6350 | -5/Extension | Discovered new exit (range 17) 6356 | -5/Extension | Core integrity fell below 50% 6379 | -5/Extension | Destroyed 7 combat bots 6384 | -5/Extension | Extracted ID and sensor layout for unrecognized location from A7's data core 6472 | -5/Extension | Entered Cetus 6494 | -5/Cetus | Spotted Cetus Guard 6494 | -5/Cetus | Spotted Cetus Guard 6506 | -5/Cetus | Destroyed Cetus Guard 6507 | -5/Cetus | Destroyed Cetus Guard 6507 | -5/Cetus | Spotted Cetus Guard 6509 | -5/Cetus | Destroyed Cetus Guard 6510 | -5/Cetus | Destroyed Cetus Guard 6836 | -5/Cetus | Lost 4 parts (1p2n1w) 6909 | -5/Cetus | Found a strange terminal 6909 | -5/Cetus | Identified exit to Archives 6991 | -5/Cetus | Spotted Cetus Guard 7021 | -5/Cetus | Entered Archives 7212 | -5/Archives | Unable to access archive contents 7288 | -5/Archives | Unable to access archive contents 7310 | -5/Archives | Build established: Scavenger-Mutant 7325 | -5/Archives | Lost 6 parts (2n2u2w) 7364 | -5/Archives | Discovered new exit (range 15) 7435 | -5/Archives | Unable to access archive contents 7437 | -5/Archives | Discovered new exit (range 17) 7499 | -5/Archives | Discovered new exit (range 16) 7710 | -5/Archives | Build established: Scavenger-Skirmisher 7902 | -5/Archives | Entered Hub_04(d) 7961 | -5/Hub_04(d) | Discovered new exit (range 11) 8084 | -5/Hub_04(d) | Discovered new exit (range 19) 8437 | -5/Hub_04(d) | Entered Factory 8437 | -4/Factory | Evolved 2 slots: Propulsion x1, Utility x1 8531 | -4/Factory | Build established: Scavenger-Mutant 8559 | -4/Factory | Identified exit to Upper Caves 8594 | -4/Factory | Entered Upper Caves 8745 | -4/Upper Caves | Learned 4 Research zone layouts 9018 | -4/Upper Caves | Learned location of Armory (-3) 9018 | -4/Upper Caves | Discovered new exit (range 5) 9034 | -4/Upper Caves | Entered another Upper Caves area 9034 | -4/Upper Caves | Discovered new exit (range 12) 9149 | -4/Upper Caves | Learned Research security intel 9374 | -4/Upper Caves | Build established: Hacker-Mutant 9425 | -4/Upper Caves | Discovered new exit (range 14) 9431 | -4/Upper Caves | Entered Warlord 9459 | -4/Warlord | Discovered new exit (range 14) 9490 | -4/Warlord | System corruption cleaned by Quarantine Array 9607 | -4/Warlord | Visited the Vortex Lab 9612 | -4/Warlord | Found Prototype Energy Cannon 9613 | -4/Warlord | Identified Vortex Driver 9616 | -4/Warlord | Found Prototype Launcher 9617 | -4/Warlord | Identified Vortex Catalyst Activator 9627 | -4/Warlord | Warlord's base attacked by MAIN.C 9680 | -4/Warlord | Met Warlord 9977 | -4/Warlord | Warlord forces counterattacked 10060 | -4/Warlord | Crushed by falling debris 10066 | -4/Warlord | Spotted B-90 Cyclops 10066 | -4/Warlord | Spotted B-86 Titan 10091 | -4/Warlord | Lost 5 parts (2n3u) 10093 | -4/Warlord | Entered Proximity Caves 10212 | -3/Proximity Caves | Spotted B-86 Titan 10350 | -3/Proximity Caves | Lost 5 parts (1p2n1u1w) 10442 | -3/Proximity Caves | Core integrity fell below 50% 10446 | -3/Proximity Caves | Attracted the attention of an 0b10 checkpoint 10446 | -3/Proximity Caves | Destroyed B-86 Titan 10469 | -3/Proximity Caves | Lost 5 parts (2p1n2w) 10610 | -3/Proximity Caves | Discovered new exit (range 8) 10639 | -3/Proximity Caves | Core integrity fell below 20% 10667 | -3/Proximity Caves | Lost 5 parts (1p1n3u) 10758 | -3/Proximity Caves | Entered Research 10758 | -3/Research | Evolved 2 slots: Utility x1, Weapon x1 10759 | -3/Research | Identified exit to Research 10841 | -3/Research | Found Unknown Launcher 10959 | -3/Research | Build established: Mutant 10971 | -3/Research | Discovered exit to Research (range 15) 10981 | -3/Research | Found Enh. Force Lance 11070 | -3/Research | Entered another Research area 11070 | -2/Research | Warlord forces began assault on 0b10 11070 | -2/Research | Evolved 2 slots: Utility x2 11070 | -2/Research | Identified Gamma Bomb Array 11139 | -2/Research | Borebot progress halted 11147 | -2/Research | Lost 3 parts (2u1w) 11157 | -2/Research | Spotted B-90 Cyclops 11168 | -2/Research | Spotted B-90 Cyclops 11180 | -2/Research | Research machine network offline 11192 | -2/Research | Discovered new exit (range 15) 11207 | -2/Research | Lost 4 parts (1p2u1w) 11235 | -2/Research | Borebot progress halted 11492 | -2/Research | Build established: Scavenger-Mutant 11649 | -2/Research | Met up with Warlord 11688 | -2/Research | Borebot progress halted 11700 | -2/Research | Borebot progress halted 11729 | -2/Research | Borebot progress halted 11805 | -2/Research | Borebot progress halted 11841 | -2/Research | Lost 10 parts (2p2n4u2w) 11889 | -2/Research | Found Prototype Processor 11890 | -2/Research | Identified Exp. Targeting Computer 11902 | -2/Research | Found Prototype Processor 11903 | -2/Research | Identified Exp. Core Analyzer 11908 | -2/Research | Found Prototype Device 11909 | -2/Research | Identified Adv. Kinecellerator 11953 | -2/Research | Spotted Executioner 11958 | -2/Research | Spotted Executioner 12001 | -2/Research | Core integrity fell below 50% 12019 | -2/Research | Lost 4 parts (1n3u) 12127 | -2/Research | Identified exit to Access 12129 | -2/Research | Entered Access 12129 | -1/Access | Evolved 2 slots: Utility x1, Weapon x1 12460 | -1/Access | Spotted B-99 Colossus 12476 | -1/Access | Spotted B-99 Colossus 12476 | -1/Access | Spotted B-99 Colossus 12747 | -1/Access | Lost 6 parts (1p1n4w) 13042 | -1/Access | Lost 6 parts (1p1n3u1w) 13200 | -1/Access | Crushed by falling debris 13201 | -1/Access | System corruption reached 10% 13215 | -1/Access | Crushed by falling debris 13249 | -1/Access | Lost 9 parts (1n6u2w) 13380 | -1/Access | Core integrity fell below 50% 13398 | -1/Access | System corruption reached 30% 13469 | -1/Access | Lost 17 parts (2p9n2u4w) 13496 | -1/Access | Core integrity fell below 20% 13507 | -1/Access | Found Prototype Hackware 13510 | -1/Access | Found Fusion Bomb Launcher 13532 | -1/Access | Identified Exp. Hacking Suite 13544 | -1/Access | Found Prototype Launcher 13559 | -1/Access | Lost 3 parts (1n1u1w) 13605 | -1/Access | Found Unknown Protection 13606 | -1/Access | Identified Hvy. Reflective Plating 13608 | -1/Access | Identified Com. Tesla Bomb Launcher 13620 | -1/Access | Core destroyed Last Messages --------------- 13531_ Penetrated by Slug. 13531_ Door malfunctions. 13532_ Identified Exp. Hacking Suite. 13544_ System corrupted: Component data lost. 13544_ Acquired Prototype Launcher. 13546_ Connecting with Fabricator... 13563_ System corrupted: Energy discharge (-35). 13581_ X#GN= %I1MQ1,6LCJGLU/CGC =IJTSPNKDRJ99 13600_ Acquired 53 matter. 13603_ WL|MDH 3C|T8>ZYM W#PSY&DI 13605_ Acquired Unknown Protection. 13606_ Identified Hvy. Reflective Plating. 13607_ Dropped Hvy. Reflective Plating. 13608_ Identified Com. Tesla Bomb Launcher. 13608_ Malfunction: Adv. Target Analyzer damaged (-13). 13609_ Dropped Faulty Com. Tesla Bomb Launcher. 13617_ Slammed into S-43 Plague. 13617_ Destabilizing: Core damaged (-48). 13618_ Slammed into S-43 Plague. 13620_ Destabilizing: Core damaged (-80). Map ----- +----------------------------------------------------+ | ??????????????????# / ? | | ??????????????????# ####### # = ? | | ??????????????????? #####?## ## ?? | | ??????????????????? # ?# ## ?? | | ??????????????????? # # ## ??? | | ?????????????????????# / ################??? | | ?????????????????????# # ###############??## | | ??????????????????? # # #?? | | ??????????????????? # ?# #? | | ?????####????????C? # ?############### #? | | ?? #????????# # ????????????????# # | | ????????# # ????????????????# # | | * #????????# # ?????????????????# + | | ?????????+ # ??????????????????# # | | """"?????????????# # ???????????????????# # | | """""?????????????# #???????????????????## ##### | | """???????????????# #????????????######## #??? | | ?""???????????????# #???########## #??? | | ??????????????????# #???# w ! #??? | | ??????????????????# #???# #######/###### #??? | | ??????????????????# #???# #?? ???######??? | | ??????????????????# #???# #? ?????????? | | ??????????????????# #???# %# #???????? | | ??????????????????# #####% # #???????? | | ??????????????????# % # #???????? | | ??????????????????# @s # """"" #???????? | | ??????????????????# % # """"" #???????? | | ??????????????????# ! ! # """"" #???????? | | ????????????????### # ??"""" #???????? | | ????????????????# # ?????? #???????? | | ?????????##+##### ! #??????? #??s????? | | ########## % #??????? #??s????? | | ! #???????######???????? | | ########## |= ] #????????????????????? | | ?????????# ! =! ! #????????????????????? | | ?????????# !#################????????????????????? | | ????????# #????????????????????????????????????? | | ????????# #????????????????????????????????????? | | ???????# w#????????????????????????????????????? | | ?????### ###??????????????????????????????????? | | ######## #??????????????????????????????????? | | ####### ???????????????????????? | | T ???????????????????????? | | ???????????????????????? | | ####### ????????????????????????? | | ### #??????????????????????????????????? | | #?###+####??????????????????????????????????? | | #???????????????????????????????????????????? | | #???????????????????????????????????????????? | | #???????????????????????????????????????????? | +----------------------------------------------------+ Best States ------------- Heat Dissipation 121 Energy Generation 69 Energy Capacity 1185 Matter Stores 300 Matter Capacity 300 Sight Range 23 Terrain Scan Range 20 Terrain Scan Density 210 Jamming Range 12 Power Amplification 60 Additional Mass Support 9 Armor Coverage 225 Resistance: EM 25 Core Shielding 20 Propulsion Shielding 66 Phase Shifting 5 Evasion (%) 70 Targeting Accuracy 12 Melee Accuracy 8 Target Analysis 8 Core Analysis 15 Armor Integrity Analysis 66 Recoil Reduction 6 Particle Charging 20 Kinecelleration 50 Offensive Hacking 24 Defensive Hacking 40 Item Schematics ----------------- Adv. Weight Redist. System | -8/Materials | Hacked System Shield | -8/Materials | Hacked Force Lance | -5/Extension | Hacked Adv. Particle Charger | -5/Extension | Hacked Robot Schematics ------------------ None Fabricated ------------ Imp. Arc Projector | x1 | -7/Factory | Preloaded H-55 Commando | x2 | -7/Factory | Preloaded Alien Tech Used ----------------- None Achievements -------------- All-out Warlord Armchair Analyst Just Shoot The Terminal Challenges ------------ None Game ------ Seed ChipSpikedMapper Manual? 0 Play Time 03:01:12 Cumulative 163.6 hours Start 2019.11.08 @ 11:35:06 End 2019.11.08 @ 23:33:40 Sessions 5 Manual Loads 0 Difficulty Rogue Special Mode None Game No. 228 Rogue 228 Adventurer 0 Explorer 0 Win Type - Total 1 Types 1/0/0/0/0/0/0 Lore% 41 Gallery% 66 Achievement% 41 Wizard Run 0 Options --------- ASCII 0 Keyboard 0 Movement Numpad Keybinds 0 Fullscreen 1 Font 16/Terminus Map View 75x55 Tactical HUD 1 Map Filters NONE Filters NONE Steam 1 RUN: bced7e4b-94a2-4e58-ae05-76dd4b180bd7